fUSD/lending_fUSD_20240218
["ID","MTS","AMOUNT","RATE_DAILY","PERIOD"]
[314381061,1708248652935,-1538.9800988,0.00036899,2]
[314381062,1708248652945,-188.83067753,0.000369,2]
[314381063,1708248652954,-793.69810076,0.000369,2]
[314381064,1708248652963,-1063.66439046,0.000369,2]
[314381065,1708248652973,-1764.31591076,0.000369,2]
[314381066,1708248652982,-268.94660494,0.000369,2]
[314381067,1708248652992,-62331.5781066,0.0003692,2]
[314381068,1708248653001,-206.48,0.00036945,2]
[314381069,1708248653010,-489.68,0.00036974,2]
[314381070,1708248653019,-150.0,0.00036986,2]
[314381071,1708248653028,-300.0,0.00036986,7]
[314381072,1708248653037,-450.0,0.00036986,12]
[314381073,1708248653046,-600.0,0.00036986,17]
[314381074,1708248653055,-750.0,0.00036986,22]
[314381075,1708248653064,-632.05244663,0.00036986,27]
[314381076,1708248653073,-500.0,0.00036999,2]
[314381077,1708248653082,-500.0,0.00036999,7]
[314381078,1708248653092,-614.49,0.00036999,2]
[314381079,1708248653101,-1649.52,0.00036999,2]
[314381080,1708248653110,-500.0,0.00036999,2]
[314381081,1708248653120,-500.0,0.00036999,2]
[314381082,1708248653129,-594.92,0.00036999,2]
[314381083,1708248653138,-1512.88,0.00036999,2]
[314381084,1708248653148,-948.77,0.00036999,2]
[314381085,1708248653158,-757.3,0.00036999,2]
[314381086,1708248653168,-1363.64,0.00036999,2]
[314381087,1708248653178,-500.0,0.00036999,2]
[314381088,1708248653188,-541.1,0.00036999,2]
[314381089,1708248653197,-3008.46,0.00036999,2]
[314381090,1708248653206,-1173.09,0.00036999,2]
[314381091,1708248653215,-1550.86,0.00036999,2]
[314381092,1708248653225,-1208.14,0.00036999,2]
[314381093,1708248653234,-851.96,0.00036999,2]
[314381094,1708248653244,-311.7421202,0.00036999,2]
[314381095,1708248653253,-100000.0,0.00037,7]
[314381096,1708248653262,-1692.02,0.00037,2]
[314381097,1708248653272,-1000.0,0.00037,37]
[314381098,1708248653281,-10029.66793976,0.00037,2]
[314381099,1708248653290,-157.28179552,0.00037,4]
[314381100,1708248653300,-177.0,0.00037,2]
[314381101,1708248653309,-4000.0,0.00037,2]
[314381102,1708248653318,-155.07,0.00037054,2]
[314381103,1708248653327,-150.39,0.00037058,2]
[314381104,1708248653336,-1205.34,0.00037066,2]
[314381105,1708248653346,-500.0,0.00037066,2]
[314381106,1708248653355,-500.0,0.00037066,2]
[314381107,1708248653365,-955.72,0.00037066,2]
[314381108,1708248653375,-2445.87,0.00037066,2]
[314381109,1708248653383,-500.0,0.00037066,2]
[314381110,1708248653392,-158.29,0.00037066,2]
[314381111,1708248653401,-1924.04,0.00037075,2]
[314381112,1708248653412,-158.82,0.00037094,2]
[314381113,1708248653421,-1109.99909028,0.00037095,2]
[314381114,1708248653430,-150.97,0.00037102,2]
[314381115,1708248653439,-150.0,0.00037108,7]
[314381116,1708248653448,-206.48,0.00037128,2]
[314381117,1708248653458,-164.19160953,0.00037153,2]
[314381118,1708248653467,-153.75,0.00037185,2]
[314381119,1708248653478,-314.79,0.00037193,2]
[314381120,1708248653490,-153.11466194,0.00037233,2]
[314381121,1708248653500,-553.14,0.00037271,2]
[314381122,1708248653510,-735.99,0.00037271,2]
[314381123,1708248653519,-500.0,0.00037271,2]
[314381124,1708248653528,-500.0,0.00037272,2]
[314381125,1708248653537,-500.0,0.00037272,2]
[314381126,1708248653546,-500.0,0.00037272,2]
[314381127,1708248653556,-500.0,0.00037272,2]
[314381128,1708248653565,-500.0,0.00037272,2]
[314381129,1708248653575,-500.0,0.00037272,2]
[314381130,1708248653584,-500.0,0.00037272,2]
[314381131,1708248653593,-500.0,0.00037272,2]
[314381132,1708248653602,-500.0,0.00037272,2]
[314381133,1708248653612,-500.0,0.00037272,2]
[314381134,1708248653621,-500.0,0.00037272,2]
[314381135,1708248653630,-500.0,0.00037272,2]
[314381136,1708248653639,-500.0,0.00037272,2]
[314381137,1708248653647,-500.0,0.00037272,2]
[314381138,1708248653657,-500.0,0.00037272,2]
[314381139,1708248653666,-500.0,0.00037272,2]
[314381140,1708248653675,-500.0,0.00037272,2]
[314381141,1708248653685,-500.0,0.00037272,2]
[314381142,1708248653694,-500.0,0.00037272,2]
[314381143,1708248653702,-500.0,0.00037272,2]
[314381144,1708248653712,-500.0,0.00037272,2]
[314381145,1708248653721,-174.21231752,0.00037279,8]
[314381146,1708248653729,-200.0,0.000373,11]
[314381147,1708248653739,-1649.52,0.00037307,2]
[314381148,1708248653748,-500.0,0.00037307,2]
[314381149,1708248653757,-500.0,0.00037307,2]
[314381150,1708248653767,-594.92,0.00037307,2]
[314381151,1708248653776,-1512.88,0.00037307,2]
[314381152,1708248653785,-757.3,0.00037307,2]
[314381153,1708248653795,-541.1,0.00037307,2]
[314381154,1708248653805,-1550.86,0.00037307,2]
[314381155,1708248653813,-206.48,0.00037311,2]
[314381156,1708248653822,-150.39,0.00037319,2]
[314381157,1708248653831,-157.27,0.00037341,2]
[314381158,1708248653840,-158.82,0.00037342,2]
[314381159,1708248653849,-152.3142153,0.00037348,2]
[314381160,1708248653858,-9368.16201532,0.0003735,2]
[314381161,1708248653867,-550.25,0.00037362,2]
[314381162,1708248653876,-15859.75800219,0.00037363,2]
[314381163,1708248653886,-712.1407579,0.00037367,2]
[314381164,1708248653894,-362.02954716,0.00037367,4]
[314381165,1708248653903,-363.44886218,0.00037368,4]
[314381166,1708248653913,-150.97,0.00037387,2]
[314381167,1708248653923,-168.92,0.00037397,2]
[314381168,1708248653932,-429.0,0.00037445,2]
[314381169,1708248653941,-276.0,0.00037445,2]
[314381170,1708248653950,-1005.0,0.00037445,2]
[314381171,1708248653959,-858.0,0.00037445,2]
[314381172,1708248653968,-150.0,0.00037445,2]
[314381173,1708248653977,-216.84,0.00037445,2]
[314381174,1708248653986,-321.0,0.00037445,2]
[314381175,1708248653996,-350.013,0.00037445,2]
[314381176,1708248654005,-343.0,0.00037445,2]
[314381177,1708248654013,-454.0,0.00037445,2]
[314381178,1708248654022,-1370.0,0.00037445,2]
[314381179,1708248654032,-2929.0,0.00037445,2]
[314381180,1708248654040,-1027.495,0.00037445,2]
[314381181,1708248654049,-8169.0,0.00037445,2]
[314381182,1708248654058,-1866.0,0.00037445,2]
[314381183,1708248654067,-19859.0,0.00037445,2]
[314381184,1708248654076,-2691.0,0.00037445,2]
[314381185,1708248654086,-2291.0,0.00037445,2]
[314381186,1708248654095,-4100.0,0.00037445,2]
[314381187,1708248654104,-709.0,0.00037445,2]
[314381188,1708248654113,-200.861,0.00037445,2]
[314381189,1708248654122,-842.0,0.00037445,2]
[314381190,1708248654132,-953.0,0.00037445,2]
[314381191,1708248654141,-1038.0,0.00037445,2]
[314381192,1708248654150,-450.528,0.00037445,2]
[314381193,1708248654160,-158.29,0.00037449,2]
[314381194,1708248654169,-206.48,0.00037494,2]
[314381195,1708248654178,-500.0,0.00037499,7]
[314381196,1708248654187,-614.49,0.00037499,2]
[314381197,1708248654197,-851.96,0.00037499,2]
[314381198,1708248654206,-12764.43489373,0.000375,2]
[314381199,1708248654215,-1648.99066007,0.000375,2]
[314381200,1708248654225,-151.0,0.0003752,7]
[314381201,1708248654234,-158.82,0.00037589,2]
[314381202,1708248654243,-178.0,0.000376,45]
[314381203,1708248654253,-154.0,0.00037617,2]
[314381204,1708248654262,-150.0,0.00037656,7]
[314381205,1708248654271,-180.0,0.00037671,2]
[314381206,1708248654280,-150.97,0.00037673,2]
[314381207,1708248654290,-206.48,0.00037677,2]
[314381208,1708248654300,-164.19160953,0.00037698,2]
[314381209,1708248654309,-2436.6036368,0.000377,3]
[314381210,1708248654319,-150.0,0.00037743,2]
[314381211,1708248654328,-205.918,0.00037743,2]
[314381212,1708248654337,-948.77,0.00037771,2]
[314381213,1708248654347,-1363.64,0.00037771,2]
[314381214,1708248654357,-500.0,0.00037771,2]
[314381215,1708248654366,-3008.46,0.00037771,2]
[314381216,1708248654375,-1173.09,0.00037771,2]
[314381217,1708248654385,-1208.14,0.00037771,2]
[314381218,1708248654394,-772.1362413,0.00037772,2]
[314381219,1708248654403,-2034.9663177,0.00037772,2]
[314381220,1708248654414,-56987.7520515,0.00037772,2]
[314381221,1708248654423,-1205.34,0.00037796,2]
[314381222,1708248654433,-500.0,0.00037796,2]
[314381223,1708248654442,-1649.52,0.00037796,2]
[314381224,1708248654452,-500.0,0.00037796,2]
[314381225,1708248654462,-500.0,0.00037796,2]
[314381226,1708248654473,-500.0,0.00037796,2]
[314381227,1708248654483,-594.92,0.00037796,2]
[314381228,1708248654492,-1512.88,0.00037796,2]
[314381229,1708248654502,-948.77,0.00037796,2]
[314381230,1708248654511,-955.72,0.00037796,2]
[314381231,1708248654521,-757.3,0.00037796,2]
[314381232,1708248654531,-2445.87,0.00037796,2]
[314381233,1708248654541,-1363.64,0.00037796,2]
[314381234,1708248654551,-500.0,0.00037796,2]
[314381235,1708248654560,-541.1,0.00037796,2]
[314381236,1708248654569,-500.0,0.00037796,2]
[314381237,1708248654578,-3008.46,0.00037796,2]
[314381238,1708248654587,-1173.09,0.00037796,2]
[314381239,1708248654596,-1550.86,0.00037796,2]
[314381240,1708248654605,-1208.14,0.00037796,2]
[314381241,1708248654614,-550.25,0.00037796,2]
[314381242,1708248654623,-3024.9,0.00037796,2]
[314381243,1708248654632,-3697.1,0.00037796,2]
[314381244,1708248654641,-500.0,0.00037797,7]
[314381245,1708248654651,-500.0,0.00037797,7]
[314381246,1708248654662,-540.67472563,0.00037797,7]
[314381247,1708248654671,-614.49,0.00037797,2]
[314381248,1708248654680,-614.49,0.00037797,2]
[314381249,1708248654689,-614.49,0.00037797,2]
[314381250,1708248654836,-614.49,0.00037797,2]
[314381251,1708248654846,-614.49,0.00037797,2]
[314381252,1708248654855,-614.49,0.00037797,2]
[314381253,1708248654865,-614.49,0.00037797,2]
[314381254,1708248654874,-614.49,0.00037797,2]
[314381255,1708248654884,-614.49,0.00037797,2]
[314381256,1708248654893,-614.7028709,0.00037797,2]
[314381257,1708248654902,-1205.34,0.00037797,2]
[314381258,1708248654912,-1205.34,0.00037797,2]
[314381259,1708248654921,-1205.34,0.00037797,2]
[314381260,1708248654930,-1205.34,0.00037797,2]
[314381261,1708248654939,-1205.34,0.00037797,2]
[314381262,1708248654949,-1205.34,0.00037797,2]
[314381263,1708248654958,-1205.34,0.00037797,2]
[314381264,1708248654967,-1205.34,0.00037797,2]
[314381265,1708248654976,-1205.34,0.00037797,2]
[314381266,1708248654986,-1205.51232135,0.00037797,2]
[314381267,1708248654995,-500.0,0.00037797,2]
[314381268,1708248655005,-500.0,0.00037797,2]
[314381269,1708248655014,-500.0,0.00037797,2]
[314381270,1708248655024,-500.0,0.00037797,2]
[314381271,1708248655033,-500.0,0.00037797,2]
[314381272,1708248655042,-500.0,0.00037797,2]
[314381273,1708248655052,-236.70233278,0.00037797,2]
[314381274,1708248655061,-1649.52,0.00037797,2]
[314381275,1708248655070,-1649.52,0.00037797,2]
[314381276,1708248655081,-1649.52,0.00037797,2]
[314381277,1708248655090,-1649.52,0.00037797,2]
[314381278,1708248655099,-1649.52,0.00037797,2]
[314381279,1708248655109,-1649.52,0.00037797,2]
[314381280,1708248655118,-1649.52,0.00037797,2]
[314381281,1708248655127,-1649.52,0.00037797,2]
[314381282,1708248655136,-1649.64157802,0.00037797,2]
[314381283,1708248655146,-500.0,0.00037797,2]
[314381284,1708248655155,-500.0,0.00037797,2]
[314381285,1708248655165,-500.0,0.00037797,2]
[314381286,1708248655175,-239.99789804,0.00037797,2]
[314381287,1708248655184,-500.0,0.00037797,2]
[314381288,1708248655193,-500.0,0.00037797,2]
[314381289,1708248655203,-500.0,0.00037797,2]
[314381290,1708248655212,-500.0,0.00037797,2]
[314381291,1708248655221,-231.71084409,0.00037797,2]
[314381292,1708248655231,-500.0,0.00037797,2]
[314381293,1708248655240,-500.0,0.00037797,2]
[314381294,1708248655249,-500.0,0.00037797,2]
[314381295,1708248655259,-500.0,0.00037797,2]
[314381296,1708248655268,-207.14855014,0.00037797,2]
[314381297,1708248655277,-553.14,0.00037797,2]
[314381298,1708248655287,-553.14,0.00037797,2]
[314381299,1708248655297,-553.14,0.00037797,2]
[314381300,1708248655307,-553.14,0.00037797,2]
[314381301,1708248655316,-553.14,0.00037797,2]
[314381302,1708248655325,-553.14,0.00037797,2]
[314381303,1708248655334,-735.99,0.00037797,2]
[314381304,1708248655344,-735.99,0.00037797,2]
[314381305,1708248655353,-735.99,0.00037797,2]
[314381306,1708248655362,-735.99,0.00037797,2]
[314381307,1708248655372,-735.99,0.00037797,2]
[314381308,1708248655381,-735.99,0.00037797,2]
[314381309,1708248655391,-594.92,0.00037797,2]
[314381310,1708248655400,-594.92,0.00037797,2]
[314381311,1708248655410,-594.92,0.00037797,2]
[314381312,1708248655419,-594.92,0.00037797,2]
[314381313,1708248655428,-594.92,0.00037797,2]
[314381314,1708248655438,-594.92,0.00037797,2]
[314381315,1708248655447,-594.92,0.00037797,2]
[314381316,1708248655456,-594.92,0.00037797,2]
[314381317,1708248655466,-595.10874403,0.00037797,2]
[314381318,1708248655475,-1512.88,0.00037797,2]
[314381319,1708248655487,-1512.88,0.00037797,2]
[314381320,1708248655497,-1512.88,0.00037797,2]
[314381321,1708248655506,-1512.88,0.00037797,2]
[314381322,1708248655517,-1512.88,0.00037797,2]
[314381323,1708248655527,-1512.88,0.00037797,2]
[314381324,1708248655536,-1512.88,0.00037797,2]
[314381325,1708248655545,-1512.88,0.00037797,2]
[314381326,1708248655554,-1512.9546173,0.00037797,2]
[314381327,1708248655564,-948.77,0.00037797,2]
[314381328,1708248655574,-948.77,0.00037797,2]
[314381329,1708248655583,-948.77,0.00037797,2]
[314381330,1708248655592,-948.77,0.00037797,2]
[314381331,1708248655602,-948.77,0.00037797,2]
[314381332,1708248655611,-948.77,0.00037797,2]
[314381333,1708248655620,-948.77,0.00037797,2]
[314381334,1708248655630,-948.77,0.00037797,2]
[314381335,1708248655639,-948.97141246,0.00037797,2]
[314381336,1708248655649,-955.72,0.00037797,2]
[314381337,1708248655658,-955.72,0.00037797,2]
[314381338,1708248655667,-955.72,0.00037797,2]
[314381339,1708248655677,-955.72,0.00037797,2]
[314381340,1708248655686,-955.72,0.00037797,2]
[314381341,1708248655694,-955.72,0.00037797,2]
[314381342,1708248655704,-955.72,0.00037797,2]
[314381343,1708248655712,-955.72,0.00037797,2]
[314381344,1708248655721,-955.72,0.00037797,2]
[314381345,1708248655731,-955.80796874,0.00037797,2]
[314381346,1708248655739,-757.3,0.00037797,2]
[314381347,1708248655748,-757.3,0.00037797,2]
[314381348,1708248655757,-757.3,0.00037797,2]
[314381349,1708248655766,-757.3,0.00037797,2]
[314381350,1708248655775,-757.3,0.00037797,2]
[314381351,1708248655784,-757.3,0.00037797,2]
[314381352,1708248655793,-757.3,0.00037797,2]
[314381353,1708248655802,-757.3,0.00037797,2]
[314381354,1708248655811,-757.40825951,0.00037797,2]
[314381355,1708248655821,-2445.87,0.00037797,2]
[314381356,1708248655830,-2445.87,0.00037797,2]
[314381357,1708248655839,-2445.87,0.00037797,2]
[314381358,1708248655849,-2445.87,0.00037797,2]
[314381359,1708248655858,-2445.87,0.00037797,2]
[314381360,1708248655867,-2445.87,0.00037797,2]
[314381361,1708248655877,-2445.87,0.00037797,2]
[314381362,1708248655886,-2445.87,0.00037797,2]
[314381363,1708248655896,-2445.87,0.00037797,2]
[314381364,1708248655905,-2445.9589565,0.00037797,2]
[314381365,1708248655915,-1363.64,0.00037797,2]
[314381366,1708248655924,-1363.64,0.00037797,2]
[314381367,1708248655933,-1363.64,0.00037797,2]
[314381368,1708248655942,-1363.64,0.00037797,2]
[314381369,1708248655951,-1363.64,0.00037797,2]
[314381370,1708248655960,-1363.64,0.00037797,2]
[314381371,1708248655969,-1363.64,0.00037797,2]
[314381372,1708248655978,-1363.64,0.00037797,2]
[314381373,1708248655988,-1363.86633682,0.00037797,2]
[314381374,1708248655997,-500.0,0.00037797,2]
[314381375,1708248656006,-500.0,0.00037797,2]
[314381376,1708248656016,-500.0,0.00037797,2]
[314381377,1708248656025,-500.0,0.00037797,2]
[314381378,1708248656034,-500.0,0.00037797,2]
[314381379,1708248656043,-500.0,0.00037797,2]
[314381380,1708248656052,-437.56686247,0.00037797,2]
[314381381,1708248656062,-541.1,0.00037797,2]
[314381382,1708248656071,-541.1,0.00037797,2]
[314381383,1708248656080,-541.1,0.00037797,2]
[314381384,1708248656090,-541.1,0.00037797,2]
[314381385,1708248656099,-541.1,0.00037797,2]
[314381386,1708248656109,-541.1,0.00037797,2]
[314381387,1708248656118,-541.1,0.00037797,2]
[314381388,1708248656127,-541.1,0.00037797,2]
[314381389,1708248656136,-541.22092,0.00037797,2]
[314381390,1708248656145,-500.0,0.00037797,2]
[314381391,1708248656155,-549.18519429,0.00037797,2]
[314381392,1708248656165,-3008.46,0.00037797,2]
[314381393,1708248656175,-3008.46,0.00037797,2]
[314381394,1708248656184,-3008.46,0.00037797,2]
[314381395,1708248656193,-3008.46,0.00037797,2]
[314381396,1708248656202,-3008.46,0.00037797,2]
[314381397,1708248656211,-3008.46,0.00037797,2]
[314381398,1708248656221,-3008.46,0.00037797,2]
[314381399,1708248656230,-1173.09,0.00037797,2]
[314381400,1708248656239,-3008.46,0.00037797,2]
[314381401,1708248656249,-3008.5,0.00037797,2]
[314381402,1708248656259,-1173.09,0.00037797,2]
[314381403,1708248656269,-1173.09,0.00037797,2]
[314381404,1708248656279,-1173.09,0.00037797,2]
[314381405,1708248656288,-1173.09,0.00037797,2]
[314381406,1708248656298,-1173.09,0.00037797,2]
[314381407,1708248656307,-1173.09,0.00037797,2]
[314381408,1708248656315,-1173.09,0.00037797,2]
[314381409,1708248656325,-1173.24578161,0.00037797,2]
[314381410,1708248656335,-1550.86,0.00037797,2]
[314381411,1708248656344,-1208.14,0.00037797,2]
[314381412,1708248656354,-1550.86,0.00037797,2]
[314381413,1708248656363,-1208.14,0.00037797,2]
[314381414,1708248656373,-1550.86,0.00037797,2]
[314381415,1708248656382,-1208.14,0.00037797,2]
[314381416,1708248656391,-1550.86,0.00037797,2]
[314381417,1708248656401,-1208.14,0.00037797,2]
[314381418,1708248656411,-1550.86,0.00037797,2]
[314381419,1708248656421,-1208.14,0.00037797,2]
[314381420,1708248656430,-1550.86,0.00037797,2]
[314381421,1708248656439,-1208.14,0.00037797,2]
[314381422,1708248656449,-1550.86,0.00037797,2]
[314381423,1708248656458,-1550.86,0.00037797,2]
[314381424,1708248656467,-1208.14,0.00037797,2]
[314381425,1708248656476,-1550.9226627,0.00037797,2]
[314381426,1708248656488,-1208.14,0.00037797,2]
[314381427,1708248656497,-1208.29200751,0.00037797,2]
[314381428,1708248656506,-851.96,0.00037797,2]
[314381429,1708248656514,-851.96,0.00037797,2]
[314381430,1708248656525,-851.96,0.00037797,2]
[314381431,1708248656534,-851.96,0.00037797,2]
[314381432,1708248656543,-851.96,0.00037797,2]
[314381433,1708248656552,-851.96,0.00037797,2]
[314381434,1708248656562,-851.96,0.00037797,2]
[314381435,1708248656572,-851.96,0.00037797,2]
[314381436,1708248656581,-500.0,0.00037797,2]
[314381437,1708248656590,-851.96,0.00037797,2]
[314381438,1708248656599,-500.0,0.00037797,2]
[314381439,1708248656608,-852.16857156,0.00037797,2]
[314381440,1708248656617,-500.0,0.00037797,2]
[314381441,1708248656626,-500.0,0.00037797,2]
[314381442,1708248656635,-500.0,0.00037797,2]
[314381443,1708248656644,-500.0,0.00037797,2]
[314381444,1708248656654,-550.25,0.00037797,2]
[314381445,1708248656664,-550.25,0.00037797,2]
[314381446,1708248656673,-550.25,0.00037797,2]
[314381447,1708248656682,-550.25,0.00037797,2]
[314381448,1708248656691,-550.25,0.00037797,2]
[314381449,1708248656701,-550.25,0.00037797,2]
[314381450,1708248656709,-550.25,0.00037797,2]
[314381451,1708248656718,-550.25,0.00037797,2]
[314381452,1708248656727,-550.41207861,0.00037797,2]
[314381453,1708248656736,-341574.19663664,0.00037798,2]
[314381454,1708248656970,-151525.22505301,0.00037798,2]
[314381455,1708248657027,-150.0,0.00034678,2]
[314381456,1708248657036,-1499.35570617,0.00035679,2]
[314381457,1708248657056,-0.64429383,0.00035679,2]
[314381458,1708248657065,-1500.0,0.00036464,2]
[314381459,1708248657074,-40776.10801905,0.00037798,2]
[314381460,1708248657093,-6327.15509939,0.00037798,2]
[314381461,1708248657406,-688.3,0.00035616,2]
[314381462,1708248657416,-413.3285921,0.00035616,2]
[314381463,1708248657438,-260.12922,0.00035616,2]
[314381464,1708248657774,-252.67293558,0.00035216,2]
[314381465,1708248657932,-607.0,0.00035216,2]
[314381466,1708248657952,-970.06229309,0.00035216,2]
[314381467,1708248658063,-622.63377133,0.00035216,2]
[314381468,1708248658073,-14.8421879,0.00035616,2]
[314381469,1708248658082,-688.3,0.00035616,2]
[314381470,1708248658092,-1013.47036716,0.00035899,2]
[314381471,1708248658102,-688.3,0.00035998,2]
[314381472,1708248658111,-688.3,0.00035998,2]
[314381473,1708248658120,-688.3,0.00035998,2]
[314381474,1708248658129,-279.17575798,0.00035998,2]
[314381476,1708249474807,550.0,0.00025,3]
[314381477,1708249475904,600.0,0.00027,3]
[314381478,1708249637366,877.88071794,0.0002457,2]
[314381479,1708249659358,877.88071794,0.0002457,2]
[314381480,1708249794864,877.88071794,0.0002457,2]
[314381481,1708249816863,877.88071794,0.0002457,2]
[314381482,1708249830868,877.88071794,0.0002457,2]
[314381497,1708249832337,-429.39553645,0.00028998,2]
[314381498,1708249832346,-155.0,0.00028999,2]
[314381499,1708249832355,-650.0,0.00029,3]
[314381500,1708249832364,-1512.8327,0.00031898,2]
[314381501,1708249832374,-263.82,0.00032338,2]
[314381502,1708249832383,-333.0,0.0003286,2]
[314381503,1708249832393,-152.0,0.000335,3]
[314381504,1708249832402,-250.0,0.00033944,2]
[314381505,1708249832413,-3082.89,0.00033959,2]
[314381506,1708249832422,-227.31,0.00034037,2]
[314381507,1708249832431,-7341.47,0.00034064,2]
[314381508,1708249832441,-800.0,0.00034256,2]
[314381509,1708249832450,-508.96,0.00034293,2]
[314381510,1708249832459,-230.51,0.00034316,2]
[314381511,1708249832469,-769.61,0.00034521,2]
[314381512,1708249832478,-263.82,0.00034602,2]
[314381513,1708249832487,-16110.53,0.00034649,2]
[314381514,1708249832496,-340.932891,0.000348,2]
[314381515,1708249832506,-281.7472,0.0003488,2]
[314381516,1708249832515,-5341.17168597,0.0003488,2]
[314381517,1708249832527,-8271.53271403,0.0003488,2]
[314381518,1708249832536,-159.36958628,0.000349,2]
[314381519,1708249832546,-998.99918129,0.000349,2]
[314381520,1708249832555,-174.21231752,0.000349,7]
[314381521,1708249832564,-201.83792447,0.0003497,2]
[314381522,1708249832573,-2568.13768744,0.0003498,2]
[314381523,1708249832589,-364.74675334,0.0003498,2]
[314381524,1708249832601,-363.19,0.0003498,2]
[314381525,1708249832612,-1059.27197256,0.0003498,2]
[314381526,1708249832623,-4623.51393727,0.0003498,2]
[314381527,1708249832635,-2860.76168912,0.0003498,2]
[314381560,1708249837482,200.0,0.000285,2]
[314381582,1708249838315,-206.0,0.00034833,2]
[314381583,1708249838325,-47.89399304,0.0003498,2]
[314381585,1708249838336,-977.46048853,0.0003498,2]
[314381586,1708249838363,-1359.64999998,0.0003498,2]
[314381587,1708249838442,-2380.0,0.0003498,2]
[314381588,1708249838453,-461.42727026,0.0003498,2]
[314381589,1708249838504,-6595.68579146,0.0003498,2]
[314381590,1708249838515,-12802.27888039,0.0003498,2]
[314381591,1708249838526,-277.64063152,0.0003498,2]
[314381592,1708249838568,-16950.65953777,0.0003498,2]
[314381593,1708249838629,-151525.22505301,0.0003498,2]
[314381849,1708249841013,-918.61647302,0.0003498,2]
[314381856,1708249841072,-2142.95365204,0.0003498,2]
[314381859,1708249841085,-2727.47376045,0.0003498,2]
[314381861,1708249841097,-14777.25296788,0.0003498,2]
[314381863,1708249841108,-1196.35888034,0.0003498,2]
[314381867,1708249841132,-299.57396,0.0003498,2]
[314381938,1708249841856,-546.0100432,0.0003498,2]
[314381946,1708249841918,-1598.5071518,0.0003498,2]
[314382125,1708249843517,-30.40145508,0.0003498,2]
[314382144,1708249843727,-20909.52045185,0.0003498,2]
[314382362,1708249846337,-14077.25820668,0.0003498,2]
[314382363,1708249847781,-238.67490872,0.00034979,4]
[314382364,1708249847791,-300.57687551,0.00034979,4]
[314382365,1708249847800,-2346.29546025,0.0003498,2]
[314382372,1708249870467,290635.02514826,0.00023,2]
[314382373,1708249870498,507302.60961089,0.00023,2]
[314382374,1708249913976,13073.32292054,0.00022789,2]
[314382375,1708249915389,877.88071794,0.00023,2]
[314382376,1708249927522,877.88071794,0.00023,2]
[314382377,1708249945505,877.88071794,0.00023,2]
[314382378,1708249959507,220.54311542,0.00023,2]
[314382379,1708250032725,50379.96500294,0.00023,2]
[314382382,1708250219408,155.0,0.00023,2]
[314382383,1708250237384,155.0,0.00023,2]
[314382384,1708250255383,210.23571277,0.00023,2]
[314382385,1708250372252,1959.11007422,0.00025012,2]
[314382387,1708250972115,-200.0,0.00028,2]
[314382388,1708250972135,-223.71507449,0.00028996,2]
[314382389,1708250972158,-808.90122499,0.00028997,2]
[314382390,1708250972183,-200.0,0.00029,2]
[314382391,1708250972202,-150.0,0.00029131,2]
[314382392,1708250972221,-150.0,0.00029131,2]
[314382393,1708250972241,-1555.51980052,0.00029132,7]
[314382407,1708251031747,-7596.10631638,0.00029132,7]
[314382408,1708251031757,-522.54,0.00029196,2]
[314382409,1708251031767,-1263.92787634,0.0003,4]